Workbook

Sheet Cover Page
A1: PROVINCIAL ADMINISTRATION OF KWAZULU-NATAL
A2: DEPARTMENT OF PUBLIC WORKS
A14: BILLS OF QUANTITIES
A15: with GCC for Construction Works - Second Edition 2010
A17: CONTRACTUAL SECTION
A20: PHASE 14: STORM DAMAGED PROGRAMME: REPAIRS AND RENOVATIONS TO STORM DAMAGED SCHOOLS THROUGHOUT THE PROVINCE OF KWAZULU-NATAL:SOUTHERN REGION: CLUSTER 82: IMBIZANE PRIMARY SCHOOL. OPEN BIDS
A22: Engineer/Principal Agent
A23: Ravi Jhupsee Architects cc t/a Architronic
A24: P.O. Box 19393
A25: Dormerton
A26: Durban
A27: 4091
A28: 0312013933 - Tel Number
A29: 0312013930 - Fax Number
A30: marvinm@architronic.co.za
A33: Employer: | C33: Region:
A34: Head: Public Works | C34: Head Public Works: Operations
A35: KZN Department of Public Works | C35: KZN Department of Public Works
A36: Private Bag X 9041 | C36: X9041
A37: PIETERMARITZBURG | C37: Pietermaritzburg
A38: 3200 | C38: 3200
A39: Tel Number: 033 - 3555569 | C39: Tel Number: | D39: 033 - 3555569
A40: Fax Number: N/A | C40: Fax Number: | D40: N/A
A42: Tender Number: ZNTM01196W | C42: Project Code: | D42: 063253
A43: CIDB Grading: 6GB OR HIGHER | C43: Document Date: | D43: 13 October 2013
A44: ECDP Number: N/A
A46: Contracting Party: __________________________________________________________________________
A47: CIDB Registration number: | C47: ______________________________________
A48: Central Suppliers Database Registration Number: | C48: ______________________________________

Sheet Section 1 - Preliminaries
A1: ITEM NO | B1: DESCRIPTION | C1: UNIT | D1: QUANTITY | E1: RATE | F1: AMOUNT
B3: SECTION NO. 1
B6: BILL NO. 1
B8: Preliminaries
A11: 1 | B11: Preliminaries | C11: Item | D11: 1 | F11: =D11*E11 -> 0
A14: Bill No. 1 | B14: Carried to Summary | F14: =SUM(F9:F13) -> 0

Sheet Section 2 - Builders Work
A1: ITEM NO | B1: DESCRIPTION | C1: UNIT | D1: QUANTITY | E1: RATE | F1: AMOUNT
B3: SECTION NO. 2
B5: BILL NO. 1
B7: ALTERATIONS (PROVISIONAL)
B9: (CPAP WORK GROUP NO. 102 UNLESS OTHERWISE STATED)
B11: Key: Location Description A Block A (Library) B Block B (3 classroom) C Block C (4 classroom) D Block D (3 classroom) E Block E (Female ablution) F Block F (Staff ablution) G Block G (Male ablution) H Block H (Old ablution) I Block I (Park home) J External works K General
B13: Tenderers are referred to the Model Preambles for All Trades as published by the Association of South African Quantity Surveyors (Tel. 011-315 4140) and the Architectural, Structural and Electrical Works Information before pricing this Bill of Quantities
B15: SUPPLEMENTARY PREAMBLES
B17: View site:
B19: Before submitting his tender the contractor shall visit the site and satisfy himself as to the nature and extent of the work to be done and the value of the materials contained in the buildings or portions of the buildings to be demolished. No claim for any variations of the contract sum in respect of the nature and extent of the work or of inferior or damaged materials will be entertained
B21: Damage to existing finishes:
B23: The Contractor will be held responsible for all damage, however caused, to existing finishes and fittings etc. and he must make good all damage at his own expense to the approval of the Principal Agent
B25: Breaking down, demolition and alteration activities and tasks, hacking off of existing plaster, etc. is to be executed with care so as to prevent damage to remaining floor and wall surfaces and finishes (where these are to be retained). Tenders will be deemed to include allowance for any necessary protection of existing surfaces and structures as may be necessary to effect the above, as the cost of repairing damage to existing surfaces and structures will be solely for the Contractors account
B27: Responsibility for site:
B29: The contractor is to note that upon possession of the site by himself, and extending until practical completion is achieved, he is solely responsible for the site, site security, general upkeep and cleaning of the site and all other responsibilities in maintaining a construction site in conformance with but not limited to, the Construction Regulations 2003, all local by-laws, all user client regulations, and all Client regulations and procedures. Tenderers are therefore urged to study all available material and to investigate fully the site and areas contiguous to the site, in order to determine the range and extent of responsibility. No additional monetary and/or time claims will be entertained in respect of the above
B31: Explosives :
B33: No explosives whatsoever may be used for demolition purposes unless otherwise stated
B35: General:
B37: The contract shall carry out the whole of the works with as little mess and noise as possible and with a minimum of disturbance to adjoining classroom blocks and their students. He shall provide proper protection and provide, erect and remove when directed, any temporary tapaulins that may be necessary during the progress of the works, or to the satisfaction of the principal agent
B39: Water supply pipes and other piping that may be encountered and found necessary to disconnect or cut, shall be effectually stopped off or grubbed up and removed, and any new connections that may be necessary shall be made with proper fittings, to the satisfaction of the principal agent
B41: Prices for taking out of doors, windows, etc. shall include for removal of all beads, architraves, ironmongery, etc
B43: Prices for taking out and removing doors and frames shall include for removing door stops, cabin hooks, etc. and making good floor and wall finishes to match existing
B45: With regard to building up of openings in existing walls, cement screeds and pavings, granolithic, tops of walls, etc., shall be levelled and prepared for raising of brickwork
B47: Making good of finishes shall include making good of the brick and concrete surfaces onto which the new finishes are applied, where necessary
B49: The contractor will be required to take all dimensions affecting the existing buildings on the site and he will be held solely responsible for the accuracy of all such dimensions where used in the manufacture of new items (doors, windows, fittings, etc.)
B51: Removal of materials:
B53: Where removal is included in the heading, sub-heading or item description, prices shall be deemed to include for the necessary costs in removal and appropriate disposal of materials including but not limited to labour, transportation and disposal costs. No further claims in this regard will be entertained
B55: Removal of asbestos material:
B57: All preparatory work, alterations, etc., to existing asbestos cement roof sheeting, gutters, rainwater pipes, etc., is to be carried out strictly by an approved and certified specialist company and in accordance with statutory requirements (Occupational Health and Safety Act, 1993 - Asbestos Regulations 2001) and all necessary precautions must be taken when working with and disposing of asbestos cement products and the disposing of waste water resulting from cleaning operations, etc
B59: The following shall apply in respect of asbestos removal:
B61: The removal of asbestos shall be carried out by a certified entity, registered in accordance with the Occupational Health and Safety Act 1993 and the Asbestos Regulation 2001. Asbestos in all forms/building elements that is to be removed, shall be carried out in strict accordance with aforementioned regulation, and a certificate issued by the entity as contemplated in the above, shall be provided per block for the removal thereof, where the term block shall in this context refer to any single, free standing building structure, regardless of size or purpose. Corresponding disposal certificates shall be issued by the facility at which the asbestos is disposed off, with said facility to, prior to the disposal of any asbestos material provide satisfactory proof that the facility is duly registered and fully compliant in terms of the act, to receive the asbestos material. Under no circumtances is the contractor nor any of his duly authorised representatives to sell and/or give away asbestos material to any member/s of the school community, the community in general or the public at large. Should this be found to be occuring, the contractor will be held responsible contractually and may further be prosecuted criminally. The cost for complying with the above, and all requirements of regulation as reflected above is to be priced for in the items for removal of asbestos material. No further claims in this regard will therefore be entertained
B63: TEMPORARY BARRIERS, SCREENS, ETC
B65: Temporary parkhome units
B67: Provide temporary parkhomes on site for educational facilities during the construction phase as herewith measured, including levelling, positioning on site and connection to an electrical supply including issuing compliance certificates
B69: Parkhomes are to be standard classroom size minimum 7 x 7m or nearest size
A71: 1 | B71: Provision of parkhome for a period of 12 months | C71: No | D71: 5 | F71: =D71*E71 -> 0
A73: 2 | B73: Provision of two tier steps for 12 months | C73: No | D73: 5 | F73: =D73*E73 -> 0
A75: 3 | B75: Provision of electrical compliance certificates for parkhomes | C75: No | D75: 5 | F75: =D75*E75 -> 0
A77: 4 | B77: Transport to and from site of parkhomes as per distance between supplier and site per return trip | C77: TRIP | D77: 5 | F77: =D77*E77 -> 0
B79: TEMPORARY ROOF PROTECTION
B81: The Contractor will be held responsible for all damage, howsoever caused, to finishes inside rooms where the existing roof coverings have been removed and he must make good all damage at his own expense to the approval of the Employer
A83: 5 | B83: Supply and install temporary waterproofing and weatherproof protection to buildings in the form of uPVC underlay or tarpaulin where roofing and related items have been removed during construction whereby exposing buildings, including the relocation of the protection to various blocks within the works as area. The contractor to allow for maintenance of the waterproofing during periods of exposure to classrooms as well the reuse and reallocation to the blocks as per the contracts construction programme | C83: m2 | D83: 1124 | F83: =D83*E83 -> 0
B85: REMOVAL OF EXISTING WORK
B87: Breaking up and removing reinforced concrete including cutting off and removing reinforcement and cart away
A89: 6 | B89: 100mm Thick slabs | C89: m2 | D89: 464 | F89: =D89*E89 -> 0
B91: Taking out and removing doors, windows, etc., including thresholds, sills, etc. (building up openings and making good finishes elsewhere)
A93: 7 | B93: Timber single door and frame size 900 x 2100mm high | C93: No | D93: 28 | F93: =D93*E93 -> 0
B95: Note: Tenderers are referred to the foregoing supplementary preambles within this trade when pricing the following item (removal of asbestos)
B97: Taking down and removal of Asbestos by Specialist
A99: 8 | B99: Pitched asbestos roof 7 000 x 5 500 x 1500mm high overall including roof covering, timber trusses and purlins, ceilings and cornices, eaves soffit covering, fascias, barge boards, gutters and rainwater pipes | C99: No | D99: 2 | F99: =D99*E99 -> 0
A101: 9 | B101: Pitched asbestos roof 24 000 x 10 000 x 1500mm high overall including roof covering, timber trusses and purlins, ceilings and cornices, eaves soffit covering, fascias, barge boards, gutters and rainwater pipes | C101: No | D101: 2 | F101: =D101*E101 -> 0
A103: 10 | B103: Pitched asbestos roof 17 000 x 10 000 x 1500mm high overall including roof covering, timber trusses and purlins, ceilings and cornices, eaves soffit covering, fascias, barge boards, gutters and rainwater pipes | C103: No | D103: 1 | F103: =D103*E103 -> 0
A105: 11 | B105: Pitched asbestos roof 32 000 x 10 000 x 1500mm high overall including roof covering, timber trusses and purlins, ceilings and cornices, eaves soffit covering, fascias, barge boards, gutters and rainwater pipes | C105: No | D105: 1 | F105: =D105*E105 -> 0
B107: If the item below is not priced, it is deemed to form part of the Occupational Health and Safety cost in the preliminaries
A109: 12 | B109: Issue of certificate of compliance by registered AIA appointed by your asbestos disposal and removal subcontractor, for the safe removal of asbestos contained products before the work on site commences | C109: Item | D109: 1 | F109: =D109*E109 -> 0
A111: 13 | B111: Allow for profit and general attendance | C111: % | F111: =D111*E111 -> 0
B113: Taking down and removing roofs, floors, panelling, ceilings, partitions, etc
A115: 14 | B115: Chromadek roof sheets including all fixings | C115: m2 | D115: 112 | F115: =D115*E115 -> 0
A117: 15 | B117: Fascias boards fixed to ends of rafters including galvanised steel H-profile joint strips, etc, | C117: m | D117: 28 | F117: =D117*E117 -> 0
A119: 16 | B119: Barge boards fixed to ends of rafters including galvanised steel H-profile joint strips, etc, | C119: m | D119: 32 | F119: =D119*E119 -> 0
A121: 17 | B121: 125 x 75mm uPVC Eaves gutters and rainwater pipes | C121: m | D121: 28 | F121: =D121*E121 -> 0
B123: Taking out and removing ironmongery
A125: 18 | B125: Make good existing glazed steel window approximately 900mm x 1200mm high including sanding down thoroughly, applying metal primer and two coats gloss enamel paint, replacing broken glazing, overhauling, adjusting and servicing existing ironmongery to leave complete unit in a perfect condition | C125: No | D125: 62 | F125: =D125*E125 -> 0
A127: 19 | B127: Remove existing chalkboards approximately 4800 x 1200mm high, including fixings, etc. and cart off site | C127: No | D127: 12 | F127: =D127*E127 -> 0
A129: 20 | B129: Remove existing pinning board approximately 1800 x 2800mm high, including fixings, etc. and cart off site | C129: No | D129: 12 | F129: =D129*E129 -> 0
B131: Hacking up/off and removing granolithic, screeds, plaster, etc from concrete or brickwork and preparing surfaces for new screeds, plaster, etc
A133: 21 | B133: 25mm Screed from floors | C133: m2 | D133: 50 | F133: =D133*E133 -> 0
B135: Taking out and removing piping, sanitary fittings, etc including disconnecting piping from fittings and making good floor and wall finishes (making good tiling and paintwork elsewhere)
A137: 22 | B137: Vitreous china wash hand basin | C137: No | D137: 8 | F137: =D137*E137 -> 0
A139: 23 | B139: Vitreous china WC pan with cistern | C139: No | D139: 16 | F139: =D139*E139 -> 0
B141: MAKING GOOD OF FINISHES ETC
A143: 24 | B143: Remove 100mm width of plaster on either side of crack, rake out crack: 6mm X 6mm deep, clean out all loose material and repair crack using Prostruct 506 Flexicoat polymer modified cementitious coating or similar approved, to Manufacturer’s specification | C143: m | D143: 125 | F143: =D143*E143 -> 0
B145: Making good existing Roof trusses
B147: Repairs to Bottom Chord
A149: 25 | B149: Make good existing timber roof truss in position, of tie beam span approximately 8000mm - 94000mm between walls and approximately 1600mm high at apex, including carefully cutting out and removing sections of damaged76 x 114mm bottom chord, replacing with new including bolting new section to old using approved galvanised mild steel bolts, washers, etc., replacing all bottom chord fixings, gang nails, etc. (whether damaged or not), sanding down and sealing entire truss to leave in a perfect condition, including reinstating in position as approved by the Engineer | C149: No | D149: 8 | F149: =D149*E149 -> 0
B151: Repairs to rafters
A153: 26 | B153: Make good existing timber roof truss in position, of tie beam span approximately 8000mm - 94000mm between walls and approximately 1600mm high at apex, including carefully cutting out and removing sections of damaged 76 x 114mm rafters, replacing with new including bolting new section to old using approved galvanised mild steel bolts, washers, etc., replacing all rafter fixings, gang nails, etc. (whether damaged or not), sanding down and sealing entire truss to leave in a perfect condition including reinstating in position as approved by the Engineer | C153: No | D153: 4 | F153: =D153*E153 -> 0
B155: Repairs to king post
A157: 27 | B157: Make good existing timber roof truss in position, of tie beam span approximately 8000mm - 94000mm between walls and approximately 1200mm high at apex, including carefully cutting out and removing sections of damaged 76 x 76mm king post, replacing with new including bolting new section to old using approved galvanised mild steel bolts, washers, etc., replacing all king post fixings, gang nails, etc. (whether damaged or not), sanding down and sealing entire truss to leave in a perfect condition, including reinstating in position as approved by the Engineer | C157: No | D157: 4 | F157: =D157*E157 -> 0
B159: Repairs to Bracings
A161: 28 | B161: Make good existing timber roof truss in position, of tie beam span approximately 8000mm - 94000mm between walls and approximately 1200mm high at apex, including carefully cutting out and removing sections of damaged 76 x 52mm bracings and intermediate posts and supports, replacing with new including bolting new section to old using approved galvanised mild steel bolts, washers, etc., replacing all king post fixings, gang nails, etc. (whether damaged or not), sanding down and sealing entire truss to leave in a perfect condition, including reinstating in position as approved by the Engineer | C161: No | D161: 12 | F161: =D161*E161 -> 0
B163: Repairs to Queen posts
A165: 29 | B165: Make good existing timber roof truss in position, of tie beam span approximately 8000mm - 94000mm between walls and approximately 1200mm high at apex, including carefully cutting out and removing sections of damaged 76 x 52mm queen posts and/or intermediate and diagonal bracing and/or supports, replacing with new including bolting new section to old using approved galvanised mild steel bolts, washers, etc., replacing all queen posts and intermediate and diagonal bracing and supports fixings, gang nails, etc. (whether damaged or not), sanding down and sealing entire truss to leave in a perfect condition, including reinstating in position as approved by the Engineer | C165: No | D165: 2 | F165: =D165*E165 -> 0
B167: Making good untinted granolithic
A169: 30 | B169: Floors in patches | C169: m2 | D169: 62 | F169: =D169*E169 -> 0
B171: Making good internal cement plaster
A173: 31 | B173: Walls in patches | C173: m2 | D173: 370 | F173: =D173*E173 -> 0
B175: Making good external cement plaster
A177: 32 | B177: Walls in patches | C177: m2 | D177: 260 | F177: =D177*E177 -> 0
A179: Bill No. 1 | B179: Carried to Summary | F179: =SUM(F68:F178) -> 0
B181: BILL NO. 2
B183: EARTHWORKS (PROVISIONAL)
B185: (CPAP WORK GROUP NO. 104 UNLESS OTHERWISE STATED)
B187: Key: Location Description A Block A (Library) B Block B (3 classroom) C Block C (4 classroom) D Block D (3 classroom) E Block E (Female ablution) F Block F (Staff ablution) G Block G (Male ablution) H Block H (Old ablution) I Block I (Park home) J External works K General
B189: Tenderers are referred to the Model Preambles for All Trades as published by the Association of South African Quantity Surveyors (Tel. 011-315 4140) and the Architectural and Structural Works Information before pricing this Bill of Quantities
B191: SUPPLEMENTARY PREAMBLES
B193: Nature of ground
B195: The nature of the ground is assumed to be loose sandy material, therefore 'earth', but possibly interspersed with 'soft rock' or 'hard rock'
B197: Excavation for working space in rock
B199: Notwithstanding clause 11 of the Standard System of Measuring Building Work, excavation for working space in rock will be measured in cubic metres to the extent executed and given as 'extra over' bulk excavation or trench and hole excavation as the case may be
B201: Carting away of excavated material
B203: Descriptions of carting away of excavated material shall be deemed to include loading excavated material onto trucks directly from the excavations or, alternatively, from stock piles situated on the building site
B205: Filling
B207: Notwithstanding the reference to prescribed multiple handling in clause 1 of the Standard System of Measuring Building Work, prices for filling and backfilling shall include for all selection and any necessary multiple handling of material
B209: Testing
B211: Prices for filling are to include for all necessary density tests in accordance with SANS 10400
B213: EXCAVATION, FILLING, ETC OTHER THAN BULK
B215: Excavation in earth not exceeding 2m deep
A217: 1 | B217: Reduced levels under floors | C217: m3 | D217: 70 | F217: =D217*E217 -> 0
B219: Extra over trench and hole excavations in earth for excavation in
A221: 2 | B221: Soft rock | C221: m3 | D221: 7 | F221: =D221*E221 -> 0
B223: Extra over all excavations for carting away
A225: 3 | B225: Surplus material from excavations and/or stock piles on site to a dumping site to be located by the contractor | C225: m3 | D225: 70 | F225: =D225*E225 -> 0
B227: Earth filling supplied by the contractor compacted to 98% Mod AASHTO density
A229: 4 | B229: G5 material under floors | C229: m3 | D229: 70 | F229: =D229*E229 -> 0
B231: Compaction of surfaces
A233: 5 | B233: Compaction of ground surface under floors etc including scarifying for a depth of 150mm, breaking down oversize material, adding suitable material where necessary and compacting to 95% Mod AASHTO density | C233: m2 | D233: 464 | F233: =D233*E233 -> 0
B235: Prescribed density tests on filling
A237: 6 | B237: "Modified AASHTO Density" test | C237: No | D237: 8 | F237: =D237*E237 -> 0
B239: SOIL POISONING
B241: Soil insecticide
A243: 7 | B243: Under floors etc including forming and poisoning shallow furrows against foundation walls etc, filling in furrows and ramming | C243: m2 | D243: 464 | F243: =D243*E243 -> 0
A245: Bill No. 2 | B245: Carried to Summary | F245: =SUM(F211:F244) -> 0
B247: BILL NO. 3
B249: CONCRETE, FORMWORK AND REINFORCEMENT
B251: (CPAP WORK GROUP NO. 110 UNLESS OTHERWISE STATED)
B253: Key: Location Description A Block A (Library) B Block B (3 classroom) C Block C (4 classroom) D Block D (3 classroom) E Block E (Female ablution) F Block F (Staff ablution) G Block G (Male ablution) H Block H (Old ablution) I Block I (Park home) J External works K General
B255: Tenderers are referred to the Model Preambles for All Trades as published by the Association of South African Quantity Surveyors (Tel. 011-315 4140) and the Architectural and Structural Works Information before pricing this Bill of Quantities
B257: SUPPLEMENTARY PREAMBLES
B259: Cost of tests
B261: The costs of making, storing and testing of concrete test cubes as required under clause 7 Tests of SABS 1200 G shall include the cost of providing cube moulds necessary for the purpose, for testing costs and for submitting reports on the tests to the principal agent. The testing shall be undertaken by an independent firm or institution nominated by the contractor to the approval of the principal agent. (Test cubes are measured separately)
B263: Formwork
B265: Descriptions of formwork shall be deemed to include use and waste only (except where described as 'left in' or 'permanent'), for fitting together in the required forms, wedging, plumbing and fixing to true angles and surfaces as necessary to ensure easy release during stripping and for reconditioning as necessary before reuse.The vertical strutting shall be carried down to such construction as is sufficiently strong to afford the required support without damage and shall remain in position until the newly constructed work is able to support itself. Formwork to soffits of solid slabs etc. shall be deemed to be to slabs not exceeding 250mm thick unless otherwise described. Formwork to soffits of slabs, beams, etc. shall be deemed to be propped up exceeding 1,5m and not exceeding 3,5m high unless otherwise described.Formwork to sides of bases, pile caps, ground beams, etc. will only be measured where it is prescribed by the engineer for design reasons. Formwork necessitated by irregularity or collapse of excavated faces will not be measured and the cost thereof shall be deemed to be included in the allowance for taking the risk of collapse of the sides of the excavations, provision for which is made in Earthworks.
B267: REINFORCED CONCRETE CAST AGAINST EXCAVATED SURFACES
B269: 25MPa/19mm concrete
A271: 1 | B271: Surface beds and thickenings, etc cast in panels on waterproofing | C271: m3 | D271: 46 | F271: =D271*E271 -> 0
B273: TEST BLOCKS
A275: 2 | B275: Making and testing 150 x 150 x 150mm concrete strength test cube (Provisional) | C275: Sets | D275: 4 | F275: =D275*E275 -> 0
B277: CONCRETE SUNDRIES
B279: Finishing top surfaces of concrete smooth with a power float
A281: 3 | B281: Surface beds, slabs, etc to falls | C281: m2 | D281: 464 | F281: =D281*E281 -> 0
B283: MOVEMENT JOINTS ETC
B285: Two sheets of masonite with smooth surfaces as slip joints between horizontal concrete and brick surfaces including cement mortar bed
A287: 4 | B287: Not exceeding 300mm wide | C287: m | D287: 196 | F287: =D287*E287 -> 0
B289: Expansion joints with bitumen impregnated softboard between vertical concrete and brick surfaces
A291: 5 | B291: 12mm Joints not exceeding 300mm high | C291: m | D291: 196 | F291: =D291*E291 -> 0
B293: Saw cut joints
A295: 6 | B295: 5 x 30mm Saw cut joints in top of concrete | C295: m | D295: 52 | F295: =D295*E295 -> 0
B297: REINFORCEMENT (PROVISIONAL) (CPAP WORK Group No. 114)
B299: Fabric reinforcement
A301: 7 | B301: Type 193 fabric reinforcement in concrete surface beds, slabs, etc | C301: m2 | D301: 464 | F301: =D301*E301 -> 0
A303: Bill No. 3 | B303: Carried to Summary | F303: =SUM(F266:F302) -> 0
B305: BILL NO. 4
B307: MASONRY
B309: (CPAP WORK GROUP NO. 116 UNLESS OTHERWISE STATED)
B311: Key: Location Description A Block A (Library) B Block B (3 classroom) C Block C (4 classroom) D Block D (3 classroom) E Block E (Female ablution) F Block F (Staff ablution) G Block G (Male ablution) H Block H (Old ablution) I Block I (Park home) J External works K General
B313: Tenderers are referred to the Model Preambles for All Trades as published by the Association of South African Quantity Surveyors (Tel. 011-315 4140) and the Architectural, Structural and Electrical Information before pricing this Bill of Quantities
B315: SUPPLEMENTARY PREAMBLES
B317: Proprietary items or materials
B319: Proprietary items or materials where specified are to be of the brand specified or other approved by the Representative / Agent
B321: BRICKWORK
B323: Sizes in description:
B325: Where sizes in descriptions are given in brick units, 'one brick' shall represent the length and 'half brick' the width of a brick
B327: Hollow walls:
B329: Descriptions of hollow walls shall be deemed to include leaving every fifth perpend of the bottom course of the external skin open as a weep hole
B331: Bagged and sealed walls:
B333: Walls in two skins described as 'bagged and sealed' shall be deemed to include having the outer face of the inner skin bagged with 1:6 cement and sand mixture and sealed with two coats bitumen emulsion waterproofing coating
B335: Face bricks:
B337: Bricks shall be ordered timeously to obtain uniformity in size and colour
B339: Pointing:
B341: Descriptions of recessed pointing to fair face brickwork and face brickwork shall be deemed to include square recessed, hollow recessed, weathered pointing, etc.
B343: SUPERSTRUCTURE
B345: Brickwork of NFP bricks in class II mortar
A347: 1 | B347: One brick walls | C347: m2 | D347: 231 | F347: =D347*E347 -> 0
B349: BRICKWORK SUNDRIES
B351: Brickwork reinforcement
A353: 2 | B353: 150mm Wide reinforcement built in horizontally | C353: m | D353: 792 | F353: =D353*E353 -> 0
A355: Bill No. 4 | B355: Carried to Summary | F355: =SUM(F342:F354) -> 0
B357: BILL NO. 5
B359: WATERPROOFING
B361: (CPAP WORK GROUP NO. 120 UNLESS OTHERWISE STATED)
B363: Key: Location Description A Block A (Library) B Block B (3 classroom) C Block C (4 classroom) D Block D (3 classroom) E Block E (Female ablution) F Block F (Staff ablution) G Block G (Male ablution) H Block H (Old ablution) I Block I (Park home) J External works K General
B365: Tenderers are referred to the Model Preambles for All Trades as published by the Association of South African Quantity Surveyors (Tel. 011-315 4140) and the Architectural and Structural Works Information before pricing this Bill of Quantities
B367: SUPPLEMENTARY PREAMBLES
B369: Proprietary items or materials
B371: Proprietary items or materials where specified are to be of the brand specified or other approved by the Representative / Agent
B373: DAMP-PROOFING OF WALLS AND FLOORS
B375: One layer of 375 micron "Consol Plastics Brikgrip DPC" or equally approved embossed damp proof course
A377: 1 | B377: In walls | C377: m2 | D377: 13 | F377: =D377*E377 -> 0
B379: One layer of 250 micron "Consol Plastics Gunplas USB Green" or equally approved waterproof sheeting sealed at laps with "Gunplas Pressure Sensitive Tape"
A381: 2 | B381: Under surface beds | C381: m2 | D381: 464 | F381: =D381*E381 -> 0
B383: JOINT SEALANTS ETC
B385: Two-part grey polysulphide sealing compound including backing cord, bond breaker, primer, etc
A387: 3 | B387: 5 x 10mm In saw cut joints in floors | C387: m | D387: 248 | F387: =D387*E387 -> 0
A389: Bill No. 5 | B389: Carried to Summary | F389: =SUM(F372:F388) -> 0
B391: BILL NO. 6
B393: ROOF COVERINGS ETC
B395: (CPAP WORK GROUP NO. 124 UNLESS OTHERWISE STATED)
B397: Key: Location Description A Block A (Library) B Block B (3 classroom) C Block C (4 classroom) D Block D (3 classroom) E Block E (Female ablution) F Block F (Staff ablution) G Block G (Male ablution) H Block H (Old ablution) I Block I (Park home) J External works K General
B399: Tenderers are referred to the Model Preambles for All Trades as published by the Association of South African Quantity Surveyors (Tel. 011-315 4140) and the Architectural, Structural and Electrical Information before pricing this Bill of Quantities
... 570 more rows

Sheet Section 3 - Electrical Works
A1: SECTION NO. 3
A2: SCHEDULE NO 3: INSTALLATION B: 2) ELECTRICAL DISTRIBUTION SYSTEM - ELECTRICAL WORK
A3: IMBIZANE PRIMARY SCHOOL
A5: ITEM | B5: DESCRIPTION | C5: UNIT | D5: QTY | E5: RATE | F5: TOTAL
A6: NO
A8: A | B8: LOW VOLTAGE CABLE
B9: Provide, install, test and commission the following 1000V
B10: PVC/SWA/PVC copper cables. Prices shall allow for the
B11: installation of cables in cable ducts, through sleeves,
B12: conduit or installation against vertical and horizontal levels.
A14: 1 | B14: 10mm² x 3 Core ECC Copper Cable
B15: Supply | C15: m | D15: 646 | F15: =D15*E15 -> 0
B16: Install | C16: m | D16: =D15 -> 646 | F16: =D16*E16 -> 0
A18: 2 | B18: 6mm² x 3 Core ECC Copper Cable
B19: Supply | C19: m | D19: 200 | F19: =D19*E19 -> 0
B20: Install | C20: m | D20: =D19 -> 200 | F20: =D20*E20 -> 0
A21: B | B21: TERMINATIONS
B22: Terminate and make off the following 1000V PVC/SWA/PVC
B23: cables in a cable gland according to the manufacturer's
B24: instructions. Provide the cores with lugs and bolt onto
B25: terminals. The cable gland and marking of the cable shall
B26: also be allowed for.
A28: 1 | B28: 10mm² x 3 Core ECC Copper Cable
B29: Supply | C29: ea | D29: 6 | F29: =D29*E29 -> 0
B30: Install | C30: ea | D30: =D29 -> 6 | F30: 0
A32: 2 | B32: 6mm² x 3 Core ECC Copper Cable
B33: Supply | C33: ea | D33: 8 | F33: =D33*E33 -> 0
B34: Install | C34: ea | D34: =D33 -> 8 | F34: 0
A36: C | B36: CABLE SLEEVES
B37: Provide and install the following UPVC sleeves
B38: in the ground complete with mild-steel draw wire.
A40: 1 | B40: 50mm Sleeves
B41: Supply | C41: m | D41: 620 | F41: =D41*E41 -> 0
B42: Install | C42: m | D42: =D41 -> 620 | F42: 0
A44: 2 | B44: 50mm Bends
B45: Supply | C45: ea | D45: 6 | F45: =D45*E45 -> 0
B46: Install | C46: ea | D46: =D45 -> 6 | F46: 0
A48: 3 | B48: Electrical 800 x 800 x 600mm double brick manhole. To be
B49: complete with cover
B50: Supply | C50: ea | D50: 2 | F50: =D50*E50 -> 0
B51: Install | C51: ea | D51: =D50 -> 2 | F51: 0
A57: Carried forward to page | F57: =SUM(F10:F56) -> 0
A58: ITEM | B58: DESCRIPTION | C58: UNIT | D58: QTY | E58: RATE | F58: AMOUNT
A59: NO
A61: Brought forward from page | F61: =F57 -> 0
A64: D | B64: DISTRIBUTION BOARDS.
B65: New distribution boards, kiosks, etc., supplied and installed
B66: in position, complete with all busbar work, switchgear,
B67: terminals, wiring, lacing, conduit terminations, meters, and
B68: all other items, including full labelling and legend card, all in
B69: accordance with the Distribution Board schematics:
A71: 1 | B71: DB-A Main Distribution board
B72: Supply | C72: ea | D72: 1 | F72: =D72*E72 -> 0
B73: Install | C73: ea | D73: =D72 -> 1 | F73: 0
A75: 2 | B75: DB-B
B76: Supply | C76: ea | D76: 1 | F76: =D76*E76 -> 0
B77: Install | C77: ea | D77: =D76 -> 1 | F77: 0
A79: 3 | B79: DB-C
B80: Supply | C80: ea | D80: 1 | F80: =D80*E80 -> 0
B81: Install | C81: ea | D81: =D80 -> 1 | F81: 0
A83: 4 | B83: DB-E (Weather Proof)
B84: Supply | C84: ea | D84: 1 | F84: =D84*E84 -> 0
B85: Install | C85: ea | D85: =D84 -> 1 | F85: 0
A87: 5 | B87: DB-F (Weather Proof)
B88: Supply | C88: ea | D88: 1 | F88: =D88*E88 -> 0
B89: Install | C89: ea | D89: =D88 -> 1 | F89: 0
A91: 6 | B91: DB-G (Weather Proof)
B92: Supply | C92: ea | D92: 1 | F92: =D92*E92 -> 0
B93: Install | C93: ea | D93: =D92 -> 1 | F93: 0
A95: 7 | B95: DB-H (Weather Proof)
B96: Supply | C96: ea | D96: 1 | F96: =D96*E96 -> 0
B97: Install | C97: ea | D97: =D96 -> 1 | F97: 0
A99: E | B99: EXCAVATIONS
B100: All prices below shall include the excavation of trenches and
B101: holes, separating of stones,their original finish.
A103: 1 | B103: Excavate in soft ground | C103: m³ | D103: 115 | F103: =D103*E103 -> 0
A105: 2 | B105: Excavate in soft rock | C105: m³ | D105: 15 | F105: =D105*E105 -> 0
A107: 3 | B107: Excavate in hard rock | C107: m³ | D107: 5 | F107: =D107*E107 -> 0
A109: 4 | B109: Suppy cable marker tape & Install 400mm below finished
B110: ground level. | C110: m | D110: 620 | F110: =D110*E110 -> 0
A113: Carried forward to page | F113: =SUM(F60:F112) -> 0
A115: ITEM | B115: DESCRIPTION | C115: UNIT | D115: QTY | E115: RATE | F115: AMOUNT
A116: NO
A118: Brought forward from page | F118: =F113 -> 0
A121: F | B121: REMOVAL OF EXISTING ELECTRICAL INSTALLATION
A123: 1 | B123: Removal of existing Electrical installation and re-instating of
B124: usable light fittings in Block A | C124: Sum | D124: 1 | F124: =D124*E124 -> 0
A126: 2 | B126: Removal of existing Electrical installation and re-instating of
B127: usable light fittings in Block B | C127: Sum | D127: 1 | F127: =D127*E127 -> 0
A129: 3 | B129: Removal of existing Electrical installation and re-instating of
B130: usable light fittings in Block C | C130: Sum | D130: 1 | F130: =D130*E130 -> 0
A132: G | B132: LIGHTNING PROTECTION INSTALLATION AND ISSUING OF CERTIFICATE
A134: 1 | B134: Block A (2 x classrooms - 136m2) installation and provide
B135: lightning Protection Certificate for Block A | C135: Sum | D135: 1 | F135: =D135*E135 -> 0
A137: 2 | B137: Block B (3 x classrooms - 192m2) installation and provide
B138: lightning Protection Certificate for Block B | C138: Sum | D138: 1 | F138: =D138*E138 -> 0
A140: 3 | B140: Block C (3 x classrooms - 256m2) installation and provide
B141: lightning Protection Certificate for Block C | C141: Sum | D141: 1 | F141: =D141*E141 -> 0
A143: 4 | B143: Block D (3 x classrooms - 208m2) installation and provide
B144: lightning Protection Certificate for Block D | C144: Sum | D144: 1 | F144: =D144*E144 -> 0
A146: 5 | B146: Block E (Toilet block - 208m2) installation and provide
B147: lightning Protection Certificate for Block E | C147: Sum | D147: 1 | F147: =D147*E147 -> 0
A149: 6 | B149: Block F (Toilet block - 208m2) installation and provide
B150: lightning Protection Certificate for Block F | C150: Sum | D150: 1 | F150: =D150*E150 -> 0
A152: 7 | B152: Block G (Toilet block - 208m2) installation and provide
B153: lightning Protection Certificate for Block G | C153: Sum | D153: 1 | F153: =D153*E153 -> 0
A155: 8 | B155: Block H (Toilet block - 208m2) installation and provide
B156: lightning Protection Certificate for Block H | C156: Sum | D156: 1 | F156: =D156*E156 -> 0
A158: H | B158: Testing and Commissioning Electrical Installation, Cables
B159: Distribution Boards and Issuing COC as per SANS 10142.
A161: 1 | B161: Block A (DB-A) | C161: Sum | D161: 1 | F161: =D161*E161 -> 0
A163: 2 | B163: Block B (DB-B) | C163: Sum | D163: 1 | F163: =D163*E163 -> 0
A165: 3 | B165: Block C (DB-C) | C165: Sum | D165: 1 | F165: =D165*E165 -> 0
A167: Carried forward to page | F167: =SUM(F117:F166) -> 0
A169: ITEM | B169: DESCRIPTION | C169: UNIT | D169: QTY | E169: RATE | F169: AMOUNT
A170: NO
A172: Brought forward from page | F172: =F167 -> 0
A175: 4 | B175: Block D (Existing DB-D) | C175: Sum | D175: 1 | F175: =D175*E175 -> 0
A177: 5 | B177: Block E (DB-E) | C177: Sum | D177: 1 | F177: =D177*E177 -> 0
A179: 6 | B179: Block F (DB-F) | C179: Sum | D179: 1 | F179: =D179*E179 -> 0
A181: 7 | B181: Block G (DB-G) | C181: Sum | D181: 1 | F181: =D181*E181 -> 0
A183: 8 | B183: Block H (DB-H) | C183: Sum | D183: 1 | F183: =D183*E183 -> 0
A185: I | B185: 5% Allowance for builders work | C185: Sum | D185: 1 | F185: =D185*E185 -> 0
A187: J | B187: Bill up rates
B189: Soil resistivity test | C189: Sum | F189: =D189*E189 -> 0
B191: 50mm Aluminium conductor | C191: m | F191: =D191*E191 -> 0
B193: 50mm Copper conductor | C193: m | F193: =D193*E193 -> 0
B195: J1 Test box | C195: ea | F195: =D195*E195 -> 0
A201: Carried forward to the summary page for electrical | F201: =SUM(F171:F200) -> 0
A202: SCHEDULE NO 4: INSTALLATION C: 2) ELECTRICAL INSTALLATION IN BUILDINGS - WORK
A203: IMBIZANE PRIMARY SCHOOL: BLOCK A, B, C, E, F, G & H
A205: ITEM | B205: DESCRIPTION | C205: UNIT | D205: QTY | E205: RATE | F205: AMOUNT
A206: NO
A207: A | B207: CONDUIT
A208: 1 | B208: 20mm Diameter PVC Conduit
B209: Supply | C209: m | D209: 2200 | F209: =D209*E209 -> 0
B210: Install | C210: m | D210: =D209 -> 2200 | F210: =D210*E210 -> 0
A212: 2 | B212: 25mm Diameter PVC conduit
B213: Supply | C213: m | D213: 1700 | F213: =D213*E213 -> 0
B214: Install | C214: m | D214: =D213 -> 1700 | F214: =D214*E214 -> 0
A216: B | B216: CIRCUIT WIRING
B217: The supply and installation in conduit of
B218: stranded copper PVCinsulated conductors
B219: in groups.
A221: 1 | B221: 2 x 1.5mm² and 2.5mm² earth wire
B222: Supply | C222: m | D222: =SUM(D209*3)+D209*20% -> 7040 | F222: =D222*E222 -> 0
B223: Install | C223: m | D223: =D222 -> 7040 | F223: 0
A225: 2 | B225: 2 x 2.5mm² and 2.5mm² earth wire
B226: Supply | C226: m | D226: =SUM(D213*3)+D213*20% -> 5440 | F226: =D226*E226 -> 0
B227: Install | C227: m | D227: =D226 -> 5440 | F227: 0
A229: 3 | B229: Draw wire
B230: Supply | C230: m | D230: =SUM(D210:D213) -> 3900 | F230: =D230*E230 -> 0
B231: Install | C231: m | D231: =D230 -> 3900 | F231: 0
A233: C | B233: CONDUIT BOXES
A235: 1 | B235: 50mm round PVC surface box
B236: Supply | C236: ea | D236: 400 | F236: =D236*E236 -> 0
B237: Install | C237: ea | D237: =D236 -> 400 | F237: 0
A239: 2 | B239: 100 x 50 x 50mm galvanised box flush in brickwork
B240: Supply | C240: ea | D240: 37 | F240: =D240*E240 -> 0
B241: Install | C241: ea | D241: =D240 -> 37 | F241: 0
A243: 3 | B243: 100mm x 100mm x 50mm galvanised box
B244: box cover plate
B245: Supply | C245: ea | D245: 36 | F245: =D245*E245 -> 0
B246: Install | C246: ea | D246: =D245 -> 36 | F246: =D246*E246 -> 0
A258: Carried forward to page | F258: =SUM(F207:F257) -> 0
A260: ITEM | B260: DESCRIPTION | C260: UNIT | D260: QTY | E260: RATE | F260: AMOUNT
A261: NO
A263: Brought forward from page | F263: =F258 -> 0
A265: D | B265: LIGHT FITTINGS
B266: Luminaires and accessories supplied complete
B267: with lamps. All fittings to carry the SABS mark.
A269: 1 | B269: Type A luminaires
B270: Supply | C270: ea | D270: 80 | F270: =D270*E270 -> 0
B271: Install | C271: ea | D271: =D270 -> 80 | F271: 0
A273: 2 | B273: Type B luminaires
B274: Supply | C274: ea | D274: 77 | F274: =D274*E274 -> 0
B275: Install | C275: ea | D275: =D274 -> 77 | F275: 0
A277: E | B277: SMALL POWER
B278: Supply and installation complete with all
B279: covers and fixings.
A281: 1 | B281: Photo electric-cell with 65mm deep conduit box
B282: Supply | C282: ea | D282: 9 | F282: =D282*E282 -> 0
B283: Install | C283: ea | D283: =D282 -> 9 | F283: 0
A285: 2 | B285: Supply & Install 20A Double Pole , 220V Contactor
B286: Supply | C286: ea | D286: 9 | F286: =D286*E286 -> 0
B287: Install | C287: ea | D287: =D286 -> 9 | F287: 0
A289: 3 | B289: 16A Double Socket Outlet in box
B290: Supply | C290: ea | D290: 36 | F290: =D290*E290 -> 0
B291: Install | C291: ea | D291: =D290 -> 36 | F291: 0
A293: 4 | B293: 16A single lever one way light switch
B294: Supply | C294: ea | D294: 33 | F294: =D294*E294 -> 0
B295: Install | C295: ea | D295: =D294 -> 33 | F295: 0
A297: 5 | B297: Siren complete with all necessary equipment for wiring
B298: Supply | C298: ea | D298: 1 | F298: =D298*E298 -> 0
B299: Install | C299: ea | D299: =D298 -> 1 | F299: 0
A301: 6 | B301: Ceiling Fan complete with all necessary equipment and
B302: to be switched with lighting circuits
B303: Supply | C303: ea | D303: 5 | F303: =D303*E303 -> 0
B304: Install | C304: ea | D304: =D303 -> 5 | F304: 0
A306: 7 | B306: 16A Weather Proof single lever one way light switch
... 31 more rows

Sheet Summary
A2: ITEM NO. | B2: FINAL SUMMARY | D2: AMOUNT
B4: Section No. 1
A6: 1 | B6: Preliminaries | D6: ='Section 1 - Preliminaries'!F14 -> 0
B8: Section No. 2
A10: 1 | B10: Alterations (Provisional) | D10: ='Section 2 - Builders Work'!F1505 -> 0
A12: 2 | B12: Earthworks | D12: ='Section 2 - Builders Work'!F1507 -> 0
A14: 3 | B14: Concrete, Formwork & Reinforcement | D14: ='Section 2 - Builders Work'!F1509 -> 0
A16: 4 | B16: Masonry | D16: ='Section 2 - Builders Work'!F1511 -> 0
A18: 5 | B18: Waterproofing | D18: ='Section 2 - Builders Work'!F1513 -> 0
A20: 6 | B20: Roof Coverings | D20: ='Section 2 - Builders Work'!F1515 -> 0
A22: 7 | B22: Carpentry and Joinery | D22: ='Section 2 - Builders Work'!F1517 -> 0
A24: 8 | B24: Ceilings, Partitions & Access Flooring | D24: ='Section 2 - Builders Work'!F1519 -> 0
A26: 9 | B26: Floor Coverings, Wall Linings, Etc. | D26: ='Section 2 - Builders Work'!F1521 -> 0
A28: 10 | B28: Ironmongery | D28: ='Section 2 - Builders Work'!F1523 -> 0
A30: 11 | B30: Metalwork | D30: ='Section 2 - Builders Work'!F1525 -> R130,000.00
A32: 12 | B32: Plastering | D32: ='Section 2 - Builders Work'!F1527 -> 0
A34: 13 | B34: Plumbing & Drainage (Provisional) | D34: ='Section 2 - Builders Work'!F1529 -> 0
A36: 14 | B36: Glazing | D36: ='Section 2 - Builders Work'!F1531 -> 0
A38: 15 | B38: Paintwork | D38: ='Section 2 - Builders Work'!F1533 -> 0
A40: 16 | B40: External Works (Provisional) | D40: ='Section 2 - Builders Work'!F1535 -> 0
A42: 17 | B42: Provisional Sums | D42: ='Section 2 - Builders Work'!F1537 -> R60,000.00
B44: Section No. 3
A46: 1 | B46: Electrical Works (Provisional) | D46: ='Section 3 - Electrical Works'!F372 -> 0
C48: Sub-Total | D48: =SUM(D5:D47) -> R190,000.00
C50: Vat @ 15% | D50: =D48*0.15 -> R28,500.00
B52: Carried to Form of Tender | C52: TOTAL | D52: =D48+D50 -> R218,500.00
